[Event "Early-Titled-Tuesday-Blitz-February-13-2024"]
[Site "Chess.com"]
[Date "2024.02.13"]
[Round "2"]
[White "margarita_2703"]
[Black "sharkarton"]
[Result "1-0"]
[WhiteElo "2360"]
[BlackElo "2535"]
[TimeControl "180+1"]
[EndTime "8:19:11 PST"]
[Termination "margarita_2703 won by checkmate"]

1. e4 {[%clk 0:03:00.9]} 1... c5 {[%clk 0:02:56.6]} 2. Nf3 {[%clk 0:02:57.1]}
2... e6 {[%clk 0:02:56.2]} 3. c3 {[%clk 0:02:55.6]} 3... d5 {[%clk 0:02:51.7]}
4. e5 {[%clk 0:02:52.6]} 4... d4 {[%clk 0:02:52]} 5. Bd3 {[%clk 0:02:50.5]} 5...
Nc6 {[%clk 0:02:40.9]} 6. O-O {[%clk 0:02:50.1]} 6... g5 {[%clk 0:02:37.7]} 7.
Qe2 {[%clk 0:02:33.2]} 7... g4 {[%clk 0:02:20.8]} 8. Ne1 {[%clk 0:02:27.9]} 8...
Qg5 {[%clk 0:01:42.8]} 9. f4 {[%clk 0:02:25.9]} 9... gxf3 {[%clk 0:01:43.7]} 10.
Nxf3 {[%clk 0:02:26]} 10... Qh5 {[%clk 0:01:28.1]} 11. Na3 {[%clk 0:02:17.4]}
11... a6 {[%clk 0:00:57.5]} 12. Nc4 {[%clk 0:02:10.3]} 12... b5 {[%clk
0:00:32.9]} 13. Be4 {[%clk 0:02:07.9]} 13... Bb7 {[%clk 0:00:24.6]} 14. Na3
{[%clk 0:01:40.7]} 14... Bg7 {[%clk 0:00:12.3]} 15. d3 {[%clk 0:01:35.9]} 15...
Nge7 {[%clk 0:00:08.3]} 16. Nc2 {[%clk 0:01:27.7]} 16... O-O-O {[%clk
0:00:06.4]} 17. Bf4 {[%clk 0:01:25.8]} 17... Ng6 {[%clk 0:00:05.8]} 18. Bg3
{[%clk 0:01:24]} 18... Ngxe5 {[%clk 0:00:05.9]} 19. cxd4 {[%clk 0:01:19.4]}
19... Nxf3+ {[%clk 0:00:03.5]} 20. Bxf3 {[%clk 0:01:19.3]} 20... Qg6 {[%clk
0:00:02.6]} 21. dxc5 {[%clk 0:01:15.4]} 21... Nd4 {[%clk 0:00:03]} 22. Nxd4
{[%clk 0:01:09.8]} 22... Bxd4+ {[%clk 0:00:03.9]} 23. Bf2 {[%clk 0:01:10]} 23...
Bxf3 {[%clk 0:00:03.9]} 24. Qxf3 {[%clk 0:01:09.9]} 24... Bxf2+ {[%clk
0:00:04.6]} 25. Rxf2 {[%clk 0:01:07.5]} 25... Qxd3 {[%clk 0:00:05.5]} 26. Qc6+
{[%clk 0:01:06.8]} 26... Kb8 {[%clk 0:00:04.9]} 27. Qb6+ {[%clk 0:01:07.2]}
27... Kc8 {[%clk 0:00:05.2]} 28. Qxa6+ {[%clk 0:01:07.5]} 28... Kb8 {[%clk
0:00:05.8]} 29. c6 {[%clk 0:01:03.6]} 29... Kc7 {[%clk 0:00:03.9]} 30. Rxf7+
{[%clk 0:00:58.3]} 30... Kd6 {[%clk 0:00:03.1]} 31. c7+ {[%clk 0:00:58.3]} 31...
Ke5 {[%clk 0:00:03.1]} 32. Re1+ {[%clk 0:00:57.1]} 32... Kd4 {[%clk 0:00:01.2]}
33. cxd8=Q+ {[%clk 0:00:55.3]} 33... Rxd8 {[%clk 0:00:02.1]} 34. Qb6+ {[%clk
0:00:51.4]} 34... Kc4 {[%clk 0:00:02.8]} 35. Rc7+ {[%clk 0:00:49.3]} 35... Kd5
{[%clk 0:00:02.8]} 36. Qc5# {[%clk 0:00:47.6]} 1-0

[Event "Early-Titled-Tuesday-Blitz-February-13-2024"]
[Site "Chess.com"]
[Date "2024.02.13"]
[Round "2"]
[White "hsd2016"]
[Black "Manukyan_Artak"]
[Result "0-1"]
[WhiteElo "2324"]
[BlackElo "2541"]
[TimeControl "180+1"]
[EndTime "8:19:13 PST"]
[Termination "Manukyan_Artak won by resignation"]

1. e4 {[%clk 0:01:11.6]} 1... c6 {[%clk 0:02:57.8]} 2. d4 {[%clk 0:01:11.1]}
2... d5 {[%clk 0:02:58.3]} 3. Nd2 {[%clk 0:01:12]} 3... dxe4 {[%clk 0:02:58.1]}
4. Nxe4 {[%clk 0:01:10.3]} 4... Nf6 {[%clk 0:02:59]} 5. Nxf6+ {[%clk 0:01:10.2]}
5... exf6 {[%clk 0:02:59.9]} 6. c3 {[%clk 0:01:11]} 6... Bd6 {[%clk 0:03:00.5]}
7. Bd3 {[%clk 0:01:11.9]} 7... O-O {[%clk 0:03:00.6]} 8. Qc2 {[%clk 0:01:12.3]}
8... h5 {[%clk 0:03:00]} 9. Ne2 {[%clk 0:01:12.3]} 9... Qc7 {[%clk 0:03:00.5]}
10. h3 {[%clk 0:01:11.8]} 10... Nd7 {[%clk 0:02:59.3]} 11. Be3 {[%clk
0:01:12.4]} 11... c5 {[%clk 0:02:58.9]} 12. O-O {[%clk 0:01:10.6]} 12... c4
{[%clk 0:02:56.2]} 13. Bh7+ {[%clk 0:01:07.1]} 13... Kh8 {[%clk 0:02:56.1]} 14.
Be4 {[%clk 0:01:07.5]} 14... Rg8 {[%clk 0:02:35.3]} 15. a4 {[%clk 0:01:01.6]}
15... g6 {[%clk 0:02:34.1]} 16. a5 {[%clk 0:01:00.1]} 16... f5 {[%clk
0:02:31.5]} 17. Bf3 {[%clk 0:00:57.5]} 17... Nf6 {[%clk 0:02:26.5]} 18. Rae1
{[%clk 0:00:47.1]} 18... Qxa5 {[%clk 0:02:18.1]} 19. Bg5 {[%clk 0:00:42.3]}
19... Kg7 {[%clk 0:02:06.1]} 20. Nf4 {[%clk 0:00:34.7]} 20... Nh7 {[%clk
0:01:48.5]} 21. Qd2 {[%clk 0:00:20.2]} 21... Nxg5 {[%clk 0:01:33.7]} 22. Nxh5+
{[%clk 0:00:20]} 22... gxh5 {[%clk 0:01:21.2]} 23. Qxg5+ {[%clk 0:00:19]} 23...
Kf8 {[%clk 0:01:21.7]} 24. Qh6+ {[%clk 0:00:19.3]} 24... Rg7 {[%clk 0:01:20.2]}
25. Qh8+ {[%clk 0:00:14.3]} 25... Rg8 {[%clk 0:01:19.9]} 26. Re8+ {[%clk
0:00:09.5]} 26... Kxe8 {[%clk 0:01:19.4]} 27. Qxg8+ {[%clk 0:00:10]} 27... Kd7
{[%clk 0:01:15.1]} 28. Qxf7+ {[%clk 0:00:09.7]} 28... Kd8 {[%clk 0:01:15.6]} 29.
Re1 {[%clk 0:00:09.2]} 29... Bd7 {[%clk 0:01:13]} 30. Qf6+ {[%clk 0:00:08.7]}
30... Kc7 {[%clk 0:01:12.7]} 31. Bxh5 {[%clk 0:00:05.7]} 31... Rf8 {[%clk
0:01:04.3]} 32. Qg7 {[%clk 0:00:06.1]} 32... Kc8 {[%clk 0:00:57.8]} 33. Bf3
{[%clk 0:00:05.9]} 33... Re8 {[%clk 0:00:49.8]} 34. Rxe8+ {[%clk 0:00:05.3]}
34... Bxe8 {[%clk 0:00:48.8]} 35. Qxb7+ {[%clk 0:00:05.6]} 35... Kd8 {[%clk
0:00:49.3]} 36. h4 {[%clk 0:00:05.8]} 36... Qa1+ {[%clk 0:00:48.1]} 0-1

[Event "Early-Titled-Tuesday-Blitz-February-13-2024"]
[Site "Chess.com"]
[Date "2024.02.13"]
[Round "2"]
[White "NovoselovRoman"]
[Black "ChessFanNM"]
[Result "1-0"]
[WhiteElo "2540"]
[BlackElo "2320"]
[TimeControl "180+1"]
[EndTime "8:19:14 PST"]
[Termination "NovoselovRoman won by checkmate"]

1. d4 {[%clk 0:03:00.9]} 1... d5 {[%clk 0:02:59.7]} 2. Bf4 {[%clk 0:02:59.7]}
2... Nf6 {[%clk 0:02:58.9]} 3. Nf3 {[%clk 0:03:00]} 3... c5 {[%clk 0:02:58.6]}
4. c3 {[%clk 0:02:59.7]} 4... e6 {[%clk 0:02:58.8]} 5. e3 {[%clk 0:02:59.9]}
5... Bd6 {[%clk 0:02:58.7]} 6. Ne5 {[%clk 0:02:59.6]} 6... Qc7 {[%clk
0:02:56.2]} 7. Nd2 {[%clk 0:02:54.1]} 7... Nbd7 {[%clk 0:02:53.9]} 8. Ndf3
{[%clk 0:02:46.4]} 8... O-O {[%clk 0:02:14.4]} 9. Bd3 {[%clk 0:02:44.9]} 9...
Ne4 {[%clk 0:02:11.1]} 10. Qc2 {[%clk 0:02:35.2]} 10... f5 {[%clk 0:01:58.8]}
11. Nxd7 {[%clk 0:02:32.1]} 11... Bxd7 {[%clk 0:01:55]} 12. Bxe4 {[%clk
0:02:19.4]} 12... fxe4 {[%clk 0:01:45.1]} 13. Bxd6 {[%clk 0:02:18.4]} 13... Qxd6
{[%clk 0:01:42.3]} 14. Ne5 {[%clk 0:02:18.5]} 14... Rf5 {[%clk 0:01:33.7]} 15.
O-O-O {[%clk 0:02:11.9]} 15... Raf8 {[%clk 0:01:30.7]} 16. f4 {[%clk 0:02:11.4]}
16... exf3 {[%clk 0:01:27]} 17. gxf3 {[%clk 0:02:11.1]} 17... Be8 {[%clk
0:01:07.3]} 18. f4 {[%clk 0:02:02.4]} 18... Qa6 {[%clk 0:01:06.2]} 19. a3 {[%clk
0:01:53.7]} 19... Ba4 {[%clk 0:01:01.7]} 20. b3 {[%clk 0:01:51.4]} 20... Be8
{[%clk 0:01:01.4]} 21. Kb2 {[%clk 0:01:51.6]} 21... Bg6 {[%clk 0:00:47.8]} 22.
Nxg6 {[%clk 0:01:44.6]} 22... hxg6 {[%clk 0:00:47]} 23. Rhg1 {[%clk 0:01:45.5]}
23... c4 {[%clk 0:00:45]} 24. b4 {[%clk 0:01:44.6]} 24... R8f6 {[%clk
0:00:36.8]} 25. Rg2 {[%clk 0:01:44.4]} 25... Rh5 {[%clk 0:00:34.5]} 26. Rdg1
{[%clk 0:01:43.6]} 26... Rh3 {[%clk 0:00:29.1]} 27. Rxg6 {[%clk 0:01:42.9]}
27... Rxg6 {[%clk 0:00:26.1]} 28. Qxg6 {[%clk 0:01:43.7]} 28... Rxh2+ {[%clk
0:00:25.4]} 29. Kb1 {[%clk 0:01:44.3]} 29... Kf8 {[%clk 0:00:04.1]} 30. Qxg7+
{[%clk 0:01:44]} 30... Ke8 {[%clk 0:00:04.2]} 31. Qf6 {[%clk 0:00:59]} 31...
Qxa3 {[%clk 0:00:01.3]} 32. Qxe6+ {[%clk 0:00:53.4]} 32... Kd8 {[%clk
0:00:01.2]} 33. Rg8+ {[%clk 0:00:48.8]} 33... Kc7 {[%clk 0:00:01.4]} 34. Rc8#
{[%clk 0:00:48.9]} 1-0

[Event "Early-Titled-Tuesday-Blitz-February-13-2024"]
[Site "Chess.com"]
[Date "2024.02.13"]
[Round "2"]
[White "SharapovEvgeny"]
[Black "Witty_Alien"]
[Result "1-0"]
[WhiteElo "2537"]
[BlackElo "2301"]
[TimeControl "180+1"]
[EndTime "8:19:14 PST"]
[Termination "SharapovEvgeny won by checkmate"]

1. e4 {[%clk 0:02:59.7]} 1... c5 {[%clk 0:02:59.9]} 2. Nf3 {[%clk 0:02:59.4]}
2... d6 {[%clk 0:03:00]} 3. d4 {[%clk 0:02:59.5]} 3... cxd4 {[%clk 0:03:00.9]}
4. Nxd4 {[%clk 0:02:59.9]} 4... Nf6 {[%clk 0:03:01.5]} 5. f3 {[%clk 0:03:00.6]}
5... e5 {[%clk 0:02:56.8]} 6. Nb3 {[%clk 0:03:00.1]} 6... Be6 {[%clk 0:02:56.7]}
7. c4 {[%clk 0:02:58.4]} 7... Nc6 {[%clk 0:02:53.2]} 8. Nc3 {[%clk 0:02:58.1]}
8... Be7 {[%clk 0:02:53.4]} 9. Be3 {[%clk 0:02:57.4]} 9... O-O {[%clk
0:02:53.8]} 10. Be2 {[%clk 0:02:57.5]} 10... a5 {[%clk 0:02:54.3]} 11. Nd2
{[%clk 0:02:56.9]} 11... a4 {[%clk 0:02:16.5]} 12. O-O {[%clk 0:02:55]} 12... a3
{[%clk 0:02:15.7]} 13. b3 {[%clk 0:02:54.6]} 13... Qa5 {[%clk 0:02:16.3]} 14.
Nd5 {[%clk 0:02:53.8]} 14... Bxd5 {[%clk 0:01:48.6]} 15. cxd5 {[%clk 0:02:53.5]}
15... Nd4 {[%clk 0:01:49.2]} 16. Nc4 {[%clk 0:02:49.7]} 16... Qb4 {[%clk
0:01:26.2]} 17. Bxd4 {[%clk 0:02:32.9]} 17... exd4 {[%clk 0:01:26]} 18. Qxd4
{[%clk 0:02:33.1]} 18... Nd7 {[%clk 0:01:18.8]} 19. Qd2 {[%clk 0:02:26.9]} 19...
Qc5+ {[%clk 0:01:06.8]} 20. Kh1 {[%clk 0:02:26.7]} 20... b5 {[%clk 0:00:58.6]}
21. Na5 {[%clk 0:02:16.3]} 21... Bf6 {[%clk 0:00:31.8]} 22. Rac1 {[%clk
0:02:13.7]} 22... Qb6 {[%clk 0:00:26.4]} 23. Nc6 {[%clk 0:02:10.3]} 23... Rfe8
{[%clk 0:00:22.5]} 24. Bd3 {[%clk 0:02:02.2]} 24... g5 {[%clk 0:00:21.6]} 25. f4
{[%clk 0:01:59.5]} 25... gxf4 {[%clk 0:00:21.8]} 26. Qxf4 {[%clk 0:01:58.3]}
26... Kh8 {[%clk 0:00:12.8]} 27. Qf5 {[%clk 0:01:57.7]} 27... Be5 {[%clk
0:00:10.7]} 28. Qxd7 {[%clk 0:01:54.6]} 28... Rg8 {[%clk 0:00:10.6]} 29. Rxf7
{[%clk 0:01:48.3]} 29... Bg7 {[%clk 0:00:06.4]} 30. e5 {[%clk 0:01:44.8]} 30...
Qe3 {[%clk 0:00:06.6]} 31. Rd1 {[%clk 0:01:32.1]} 31... dxe5 {[%clk 0:00:07.1]}
32. Qf5 {[%clk 0:01:22.8]} 32... e4 {[%clk 0:00:04.8]} 33. Bxe4 {[%clk
0:01:19.1]} 33... Qh6 {[%clk 0:00:05.2]} 34. d6 {[%clk 0:01:10.8]} 34... Raf8
{[%clk 0:00:05.2]} 35. d7 {[%clk 0:01:05.4]} 35... Rxf7 {[%clk 0:00:03.8]} 36.
Qxf7 {[%clk 0:01:04.8]} 36... Bf6 {[%clk 0:00:02.7]} 37. d8=Q {[%clk 0:00:54.8]}
37... Bxd8 {[%clk 0:00:02.5]} 38. Nxd8 {[%clk 0:00:51.7]} 38... Qd2 {[%clk
0:00:01.8]} 39. Qxh7# {[%clk 0:00:48.9]} 1-0

[Event "Early-Titled-Tuesday-Blitz-February-13-2024"]
[Site "Chess.com"]
[Date "2024.02.13"]
[Round "2"]
[White "traviscottofficial"]
[Black "PLAYER_2006_M"]
[Result "0-1"]
[WhiteElo "2659"]
[BlackElo "3003"]
[TimeControl "180+1"]
[EndTime "8:19:15 PST"]
[Termination "PLAYER_2006_M won by resignation"]

1. d4 {[%clk 0:02:57.8]} 1... e6 {[%clk 0:03:00.4]} 2. c4 {[%clk 0:02:57.4]}
2... b6 {[%clk 0:03:01]} 3. Nc3 {[%clk 0:02:57.3]} 3... Bb7 {[%clk 0:03:00.4]}
4. Nf3 {[%clk 0:02:55.6]} 4... Bb4 {[%clk 0:02:58.6]} 5. g3 {[%clk 0:02:55.6]}
5... Bxc3+ {[%clk 0:02:57.8]} 6. bxc3 {[%clk 0:02:55.7]} 6... Nf6 {[%clk
0:02:58.7]} 7. Bg2 {[%clk 0:02:55.8]} 7... O-O {[%clk 0:02:59.3]} 8. a4 {[%clk
0:02:54.9]} 8... Nc6 {[%clk 0:02:55.6]} 9. Ne5 {[%clk 0:02:51.6]} 9... Na5
{[%clk 0:02:47.7]} 10. Bxb7 {[%clk 0:02:51.2]} 10... Nxb7 {[%clk 0:02:48.6]} 11.
O-O {[%clk 0:02:50.2]} 11... d6 {[%clk 0:02:49.1]} 12. Nf3 {[%clk 0:02:46.9]}
12... Na5 {[%clk 0:02:49.3]} 13. Nd2 {[%clk 0:02:45.7]} 13... e5 {[%clk
0:02:42.2]} 14. Ba3 {[%clk 0:02:35.6]} 14... c5 {[%clk 0:02:41.2]} 15. d5 {[%clk
0:02:25.8]} 15... e4 {[%clk 0:02:30]} 16. e3 {[%clk 0:02:25.7]} 16... Re8 {[%clk
0:02:29.6]} 17. Qe2 {[%clk 0:02:25.8]} 17... Qd7 {[%clk 0:02:25]} 18. Rfb1
{[%clk 0:02:22.1]} 18... h5 {[%clk 0:02:22.1]} 19. Rb5 {[%clk 0:02:05]} 19...
Qh3 {[%clk 0:02:13.2]} 20. Qf1 {[%clk 0:01:25.9]} 20... Qf5 {[%clk 0:02:12.4]}
21. Nb3 {[%clk 0:01:23.1]} 21... Nxb3 {[%clk 0:02:09.2]} 22. Rxb3 {[%clk
0:01:23.1]} 22... Ng4 {[%clk 0:02:09]} 23. a5 {[%clk 0:01:19.4]} 23... bxa5
{[%clk 0:02:08.6]} 24. Rb5 {[%clk 0:01:17.8]} 24... Ne5 {[%clk 0:02:05.2]} 25.
Rxa5 {[%clk 0:01:17.4]} 25... h4 {[%clk 0:02:01.6]} 26. Bc1 {[%clk 0:01:07.7]}
26... Nf3+ {[%clk 0:01:58.6]} 27. Kh1 {[%clk 0:01:05]} 27... Re5 {[%clk
0:01:49]} 28. Rxa7 {[%clk 0:01:00.5]} 28... Rxa7 {[%clk 0:01:38.7]} 29. Rxa7
{[%clk 0:01:01.4]} 29... hxg3 {[%clk 0:01:38.3]} 30. fxg3 {[%clk 0:01:00.5]}
30... Qh5 {[%clk 0:01:36.5]} 31. Ra8+ {[%clk 0:00:57.6]} 31... Kh7 {[%clk
0:01:35.7]} 32. Ra2 {[%clk 0:00:58.1]} 32... Rf5 {[%clk 0:01:33.9]} 33. Rf2
{[%clk 0:00:51.9]} 33... Kg8 {[%clk 0:01:28.8]} 34. Qe2 {[%clk 0:00:49]} 34...
Qg6 {[%clk 0:01:22.6]} 35. Qb2 {[%clk 0:00:42.5]} 35... Rh5 {[%clk 0:01:19.3]}
36. Rg2 {[%clk 0:00:25.8]} 36... Qg4 {[%clk 0:01:14.2]} 37. Qe2 {[%clk
0:00:20.5]} 37... Nxh2 {[%clk 0:01:06.7]} 38. Qxg4 {[%clk 0:00:20.4]} 38...
Nxg4+ {[%clk 0:01:07.3]} 39. Kg1 {[%clk 0:00:21.3]} 39... Ne5 {[%clk 0:01:08]}
40. Ra2 {[%clk 0:00:19.4]} 40... Nf3+ {[%clk 0:01:07.8]} 41. Kf1 {[%clk
0:00:18.6]} 41... Rh1+ {[%clk 0:01:08.3]} 42. Ke2 {[%clk 0:00:17.5]} 42... Rh2+
{[%clk 0:01:09.2]} 0-1

[Event "Early-Titled-Tuesday-Blitz-February-13-2024"]
[Site "Chess.com"]
[Date "2024.02.13"]
[Round "2"]
[White "lilleper1"]
[Black "FoxOnTheRun97"]
[Result "1-0"]
[WhiteElo "2977"]
[BlackElo "2648"]
[TimeControl "180+1"]
[EndTime "8:19:15 PST"]
[Termination "lilleper1 won on time"]

1. e4 {[%clk 0:03:00.9]} 1... c6 {[%clk 0:02:59.7]} 2. d4 {[%clk 0:02:58.8]}
2... d5 {[%clk 0:03:00.1]} 3. e5 {[%clk 0:02:59.2]} 3... Bf5 {[%clk 0:02:59.8]}
4. Nd2 {[%clk 0:02:59.3]} 4... e6 {[%clk 0:03:00]} 5. Nb3 {[%clk 0:02:59.6]}
5... Nd7 {[%clk 0:02:59.3]} 6. Nf3 {[%clk 0:02:59]} 6... Ne7 {[%clk 0:02:57.4]}
7. Be2 {[%clk 0:02:57.9]} 7... h6 {[%clk 0:02:57]} 8. a4 {[%clk 0:02:57.6]} 8...
Nc8 {[%clk 0:02:55.9]} 9. a5 {[%clk 0:02:57.1]} 9... a6 {[%clk 0:02:56.1]} 10.
O-O {[%clk 0:02:56.1]} 10... Na7 {[%clk 0:02:56]} 11. Bd3 {[%clk 0:02:55.2]}
11... Bxd3 {[%clk 0:02:54]} 12. Qxd3 {[%clk 0:02:56.1]} 12... c5 {[%clk
0:02:51.5]} 13. dxc5 {[%clk 0:02:53.7]} 13... Nxc5 {[%clk 0:02:51.1]} 14. Nxc5
{[%clk 0:02:53.8]} 14... Bxc5 {[%clk 0:02:51.5]} 15. Ra4 {[%clk 0:02:54.3]}
15... Rc8 {[%clk 0:02:36.2]} 16. Rg4 {[%clk 0:02:46]} 16... g6 {[%clk
0:02:21.1]} 17. c3 {[%clk 0:02:39.5]} 17... Qd7 {[%clk 0:02:12.6]} 18. Rh4
{[%clk 0:02:26.4]} 18... h5 {[%clk 0:02:10.8]} 19. Bg5 {[%clk 0:02:24]} 19...
Qb5 {[%clk 0:02:06.1]} 20. Qd2 {[%clk 0:02:22.7]} 20... Nc6 {[%clk 0:01:53.6]}
21. Bf6 {[%clk 0:02:20.4]} 21... Rg8 {[%clk 0:01:21.9]} 22. b4 {[%clk
0:02:19.8]} 22... Be7 {[%clk 0:01:19.7]} 23. Re1 {[%clk 0:02:19.3]} 23... b6
{[%clk 0:01:01]} 24. axb6 {[%clk 0:02:17]} 24... Qxb6 {[%clk 0:01:00.8]} 25. Ng5
{[%clk 0:02:11.5]} 25... a5 {[%clk 0:00:50.4]} 26. bxa5 {[%clk 0:01:47.8]} 26...
Qxa5 {[%clk 0:00:45]} 27. Rf4 {[%clk 0:01:43.9]} 27... Rc7 {[%clk 0:00:27.3]}
28. Bxe7 {[%clk 0:01:38.5]} 28... Rxe7 {[%clk 0:00:28.2]} 29. Qb2 {[%clk
0:01:30.7]} 29... Kf8 {[%clk 0:00:20.6]} 30. Ra1 {[%clk 0:01:27.1]} 30... Qc7
{[%clk 0:00:17.6]} 31. Ra8+ {[%clk 0:01:05.8]} 31... Kg7 {[%clk 0:00:17.2]} 32.
Rxf7+ {[%clk 0:01:04.6]} 32... Rxf7 {[%clk 0:00:09.5]} 33. Nxe6+ {[%clk
0:01:04.5]} 33... Kh7 {[%clk 0:00:09.1]} 34. Nxc7 {[%clk 0:01:04.5]} 34... Rxc7
{[%clk 0:00:07.6]} 35. Rxg8 {[%clk 0:01:03.1]} 35... Kxg8 {[%clk 0:00:08]} 36.
f4 {[%clk 0:00:57.8]} 36... Ne7 {[%clk 0:00:05.7]} 37. Qb6 {[%clk 0:00:54.2]}
37... Rc4 {[%clk 0:00:03]} 38. Qe6+ {[%clk 0:00:50.8]} 38... Kf8 {[%clk
0:00:03]} 39. Qf6+ {[%clk 0:00:51]} 39... Ke8 {[%clk 0:00:03.4]} 40. e6 {[%clk
0:00:51]} 1-0

[Event "Early-Titled-Tuesday-Blitz-February-13-2024"]
[Site "Chess.com"]
[Date "2024.02.13"]
[Round "2"]
[White "amanjazu"]
[Black "Sokoloco"]
[Result "0-1"]
[WhiteElo "2509"]
[BlackElo "2767"]
[TimeControl "180+1"]
[EndTime "8:19:24 PST"]
[Termination "Sokoloco won on time"]

1. g3 {[%clk 0:03:00.9]} 1... e5 {[%clk 0:02:56.4]} 2. Bg2 {[%clk 0:03:01.8]}
2... d5 {[%clk 0:02:56.5]} 3. d4 {[%clk 0:03:02.4]} 3... e4 {[%clk 0:02:52.8]}
4. c4 {[%clk 0:03:02.5]} 4... c6 {[%clk 0:02:52.9]} 5. Nc3 {[%clk 0:03:03.4]}
5... Be6 {[%clk 0:02:46.5]} 6. f3 {[%clk 0:02:47.7]} 6... f5 {[%clk 0:02:44.9]}
7. Nh3 {[%clk 0:02:44.7]} 7... Nf6 {[%clk 0:02:43.9]} 8. O-O {[%clk 0:02:44]}
8... Be7 {[%clk 0:02:37.8]} 9. Bg5 {[%clk 0:02:43.3]} 9... O-O {[%clk
0:02:32.4]} 10. Nf4 {[%clk 0:02:42.4]} 10... Bf7 {[%clk 0:02:31.6]} 11. Qb3
{[%clk 0:02:02.7]} 11... Qd7 {[%clk 0:02:23.8]} 12. fxe4 {[%clk 0:01:33.2]}
12... dxc4 {[%clk 0:02:02.6]} 13. Qd1 {[%clk 0:01:32.6]} 13... Nxe4 {[%clk
0:01:54.6]} 14. Nxe4 {[%clk 0:01:26.5]} 14... fxe4 {[%clk 0:01:54.9]} 15. Bxe7
{[%clk 0:00:41.7]} 15... Qxe7 {[%clk 0:01:55.8]} 16. Qc2 {[%clk 0:00:41.7]}
16... Re8 {[%clk 0:01:53.3]} 17. e3 {[%clk 0:00:33.1]} 17... Nd7 {[%clk
0:01:53.4]} 18. Ne2 {[%clk 0:00:33.8]} 18... Nf6 {[%clk 0:01:51.5]} 19. Nc3
{[%clk 0:00:34.4]} 19... Bd5 {[%clk 0:01:41.9]} 20. Rf4 {[%clk 0:00:25.3]} 20...
b5 {[%clk 0:01:27]} 21. Raf1 {[%clk 0:00:22.8]} 21... b4 {[%clk 0:01:22.9]} 22.
Na4 {[%clk 0:00:23.4]} 22... Nd7 {[%clk 0:01:17.6]} 23. Rg4 {[%clk 0:00:22.1]}
23... Rf8 {[%clk 0:01:05.4]} 24. Bxe4 {[%clk 0:00:17.8]} 24... Nf6 {[%clk
0:00:55.4]} 25. Rxf6 {[%clk 0:00:11.4]} 25... Rxf6 {[%clk 0:00:55.4]} 26. Bxh7+
{[%clk 0:00:11.9]} 26... Kh8 {[%clk 0:00:55.7]} 27. e4 {[%clk 0:00:12.8]} 27...
Be6 {[%clk 0:00:43.3]} 28. Rh4 {[%clk 0:00:13.4]} 28... Rh6 {[%clk 0:00:44]} 29.
Rxh6 {[%clk 0:00:11.1]} 29... gxh6 {[%clk 0:00:44.9]} 30. Bg6 {[%clk 0:00:11.2]}
30... Qg5 {[%clk 0:00:45.7]} 31. e5 {[%clk 0:00:10.5]} 31... Rf8 {[%clk
0:00:32.8]} 32. Nc5 {[%clk 0:00:06.1]} 32... Bh3 {[%clk 0:00:29.3]} 0-1

[Event "Early-Titled-Tuesday-Blitz-February-13-2024"]
[Site "Chess.com"]
[Date "2024.02.13"]
[Round "2"]
[White "DrCeltic"]
[Black "Alen_Yeremyann"]
[Result "0-1"]
[WhiteElo "2563"]
[BlackElo "2794"]
[TimeControl "180+1"]
[EndTime "8:19:25 PST"]
[Termination "Alen_Yeremyann won by resignation"]

1. e4 {[%clk 0:02:59.1]} 1... c5 {[%clk 0:02:53.2]} 2. Nf3 {[%clk 0:02:59.1]}
2... Nc6 {[%clk 0:02:53.7]} 3. d4 {[%clk 0:02:59.7]} 3... cxd4 {[%clk 0:02:54]}
4. Nxd4 {[%clk 0:03:00.6]} 4... Nf6 {[%clk 0:02:54.6]} 5. Nc3 {[%clk 0:03:00.5]}
5... e5 {[%clk 0:02:55.2]} 6. Ndb5 {[%clk 0:03:00.9]} 6... d6 {[%clk 0:02:55.8]}
7. Bg5 {[%clk 0:03:01.5]} 7... a6 {[%clk 0:02:56.3]} 8. Na3 {[%clk 0:03:02.1]}
8... b5 {[%clk 0:02:57.1]} 9. Nd5 {[%clk 0:03:02.6]} 9... Be7 {[%clk 0:02:57.6]}
10. Bxf6 {[%clk 0:03:03.2]} 10... Bxf6 {[%clk 0:02:58.4]} 11. c3 {[%clk
0:03:04.1]} 11... Ne7 {[%clk 0:02:58.5]} 12. Nc2 {[%clk 0:03:04.4]} 12... Nxd5
{[%clk 0:02:56.6]} 13. Qxd5 {[%clk 0:03:05.3]} 13... Be6 {[%clk 0:02:57]} 14.
Qc6+ {[%clk 0:02:53.5]} 14... Ke7 {[%clk 0:02:57.4]} 15. Qb7+ {[%clk 0:02:50.9]}
15... Qd7 {[%clk 0:02:53.4]} 16. Qxd7+ {[%clk 0:02:49.2]} 16... Kxd7 {[%clk
0:02:52.2]} 17. Be2 {[%clk 0:02:39.5]} 17... Bg5 {[%clk 0:02:51.1]} 18. h4
{[%clk 0:02:35.5]} 18... Bh6 {[%clk 0:02:50.1]} 19. Rd1 {[%clk 0:02:25.8]} 19...
Bxa2 {[%clk 0:02:46.9]} 20. Nb4 {[%clk 0:02:26]} 20... Bb3 {[%clk 0:02:42.7]}
21. Rd3 {[%clk 0:02:25.7]} 21... g6 {[%clk 0:02:25.9]} 22. Nd5 {[%clk
0:02:25.1]} 22... Rab8 {[%clk 0:02:22.1]} 23. Bg4+ {[%clk 0:02:20.3]} 23... Kd8
{[%clk 0:02:17.9]} 24. Nb4 {[%clk 0:02:17.9]} 24... Rb6 {[%clk 0:02:18]} 25. Nd5
{[%clk 0:02:12]} 25... Bxd5 {[%clk 0:02:12.9]} 26. Rxd5 {[%clk 0:02:11.9]} 26...
Ke7 {[%clk 0:02:12.4]} 27. Ke2 {[%clk 0:02:08.7]} 27... b4 {[%clk 0:02:12.5]}
28. c4 {[%clk 0:02:06.7]} 28... b3 {[%clk 0:02:12.9]} 29. Ra1 {[%clk 0:01:59.7]}
29... Rc6 {[%clk 0:02:12.4]} 30. Kd3 {[%clk 0:01:56.6]} 30... Rb8 {[%clk
0:02:12.7]} 31. Ra4 {[%clk 0:01:52.9]} 31... Bc1 {[%clk 0:02:09.4]} 32. Kc3
{[%clk 0:01:49.4]} 32... h5 {[%clk 0:02:06.3]} 33. Bd1 {[%clk 0:01:41.2]} 33...
Rcb6 {[%clk 0:02:06.7]} 34. Rda5 {[%clk 0:01:33.5]} 34... f5 {[%clk 0:01:54.4]}
35. exf5 {[%clk 0:01:29.7]} 35... gxf5 {[%clk 0:01:54.9]} 36. Rxa6 {[%clk
0:01:29.7]} 36... Rxa6 {[%clk 0:01:45.4]} 37. Rxa6 {[%clk 0:01:30.6]} 37... Rg8
{[%clk 0:01:44.5]} 38. g3 {[%clk 0:01:28.5]} 38... f4 {[%clk 0:01:44.8]} 39.
Ra7+ {[%clk 0:01:27.5]} 39... Kf6 {[%clk 0:01:40.6]} 40. Bxh5 {[%clk 0:01:22.8]}
40... fxg3 {[%clk 0:01:40.3]} 41. Rf7+ {[%clk 0:00:40.7]} 41... Ke6 {[%clk
0:01:38.2]} 42. fxg3 {[%clk 0:00:41]} 42... Rxg3+ {[%clk 0:01:31.7]} 43. Rf3
{[%clk 0:00:41.1]} 43... Rg2 {[%clk 0:01:32]} 44. Kxb3 {[%clk 0:00:35.4]} 44...
e4 {[%clk 0:01:32.2]} 45. Rf8 {[%clk 0:00:28.4]} 45... Bxb2 {[%clk 0:01:22.7]}
46. Re8+ {[%clk 0:00:24.5]} 46... Kf5 {[%clk 0:01:22.1]} 47. Bf7 {[%clk
0:00:19.3]} 47... Be5 {[%clk 0:01:19.5]} 48. Bd5 {[%clk 0:00:16.3]} 48... Rb2+
{[%clk 0:01:20]} 49. Ka3 {[%clk 0:00:16.6]} 49... e3 {[%clk 0:01:20.8]} 50. Bf3
{[%clk 0:00:11.5]} 50... e2 {[%clk 0:01:17.9]} 51. Bxe2 {[%clk 0:00:05.7]} 51...
Rxe2 {[%clk 0:01:18.4]} 52. Kb4 {[%clk 0:00:05.1]} 52... Bc3+ {[%clk 0:01:18.3]}
0-1